[Event "Masters Tournament (MTO)"]
[Site "Biel, Switzerland"]
[Date "2026.07.16"]
[Round "4.1"]
[White "Acs, Peter"]
[Black "Ganguly, Surya Shekhar"]
[Result "1-0"]
[TimeControl "100+30+30sec/move"]
[WhiteTitle "-"]
[BlackTitle "-"]
[WhiteFideId "708020"]
[BlackFideId "5002150"]
[WhiteElo "2561"]
[BlackElo "2578"]

1. e4 {[%clk 01:40:55]} {[%emt 00:00:04]} e6 {[%clk 01:40:45]} {[%emt
00:00:17]} 2. d4 {[%clk 01:41:08]} {[%emt 00:00:16]} d5 {[%clk 01:41:10]}
{[%emt 00:00:05]} 3. e5 {[%clk 01:41:27]} {[%emt 00:00:10]} c5 {[%clk
01:41:33]} {[%emt 00:00:06]} 4. c3 {[%clk 01:41:43]} {[%emt 00:00:15]} Nc6
{[%clk 01:41:56]} {[%emt 00:00:06]} 5. Nf3 {[%clk 01:41:58]} {[%emt 00:00:16]}
Bd7 {[%clk 01:42:09]} {[%emt 00:00:17]} 6. Be2 {[%clk 01:42:03]} {[%emt
00:00:25]} Nge7 {[%clk 01:42:10]} {[%emt 00:00:27]} 7. Na3 {[%clk 01:40:07]}
{[%emt 00:02:28]} cxd4 {[%clk 01:41:54]} {[%emt 00:00:47]} 8. cxd4 {[%clk
01:40:26]} {[%emt 00:00:11]} Nf5 {[%clk 01:42:20]} {[%emt 00:00:03]} 9. Nc2
{[%clk 01:40:45]} {[%emt 00:00:11]} Be7 {[%clk 01:42:45]} {[%emt 00:00:05]} 10.
O-O {[%clk 01:40:14]} {[%emt 00:01:00]} O-O {[%clk 01:43:08]} {[%emt 00:00:08]}
11. Bd2 {[%clk 01:18:39]} {[%emt 00:22:05]} f6 {[%clk 01:41:28]} {[%emt
00:02:08]} 12. exf6 {[%clk 01:15:23]} {[%emt 00:03:47]} Bxf6 {[%clk 01:41:49]}
{[%emt 00:00:09]} 13. Bc3 {[%clk 01:15:36]} {[%emt 00:00:18]} Be8 {[%clk
01:31:30]} {[%emt 00:10:49]} 14. Re1 {[%clk 01:08:45]} {[%emt 00:07:21]} a6
{[%clk 01:30:17]} {[%emt 00:01:41]} 15. h3 {[%clk 01:02:58]} {[%emt 00:06:18]}
Qd7 {[%clk 01:19:50]} {[%emt 00:10:56]} 16. Nb4 {[%clk 00:55:57]} {[%emt
00:07:32]} Bg6 {[%clk 01:04:53]} {[%emt 00:15:27]} 17. Nxc6 {[%clk 00:52:44]}
{[%emt 00:03:43]} Qxc6 {[%clk 00:59:19]} {[%emt 00:06:03]} 18. Bf1 {[%clk
00:49:40]} {[%emt 00:03:34]} Qd7 {[%clk 00:36:56]} {[%emt 00:22:53]} 19. Qe2
{[%clk 00:46:15]} {[%emt 00:03:55]} Rae8 {[%clk 00:32:44]} {[%emt 00:04:42]} 20.
Rac1 {[%clk 00:43:22]} {[%emt 00:03:23]} Nd6 {[%clk 00:23:56]} {[%emt
00:09:18]} 21. Bb4 {[%clk 00:41:06]} {[%emt 00:02:46]} Be4 {[%clk 00:20:46]}
{[%emt 00:03:40]} 22. Ne5 {[%clk 00:39:06]} {[%emt 00:02:29]} Qd8 {[%clk
00:21:06]} {[%emt 00:00:09]} 23. f3 {[%clk 00:29:31]} {[%emt 00:10:06]} Bf5
{[%clk 00:21:13]} {[%emt 00:00:23]} 24. Red1 {[%clk 00:26:53]} {[%emt
00:03:07]} h6 {[%clk 00:20:36]} {[%emt 00:01:06]} 25. Qe1 {[%clk 00:25:48]}
{[%emt 00:01:36]} Bg5 {[%clk 00:19:58]} {[%emt 00:01:08]} 26. Ba5 {[%clk
00:25:02]} {[%emt 00:01:17]} b6 {[%clk 00:18:04]} {[%emt 00:02:23]} 27. Bd2
{[%clk 00:25:02]} {[%emt 00:00:29]} Bh4 {[%clk 00:18:14]} {[%emt 00:00:21]} 28.
g3 {[%clk 00:24:41]} {[%emt 00:00:51]} Bf6 {[%clk 00:17:57]} {[%emt 00:00:47]}
29. Bb4 {[%clk 00:23:37]} {[%emt 00:01:34]} a5 {[%clk 00:17:17]} {[%emt
00:01:10]} 30. Ba3 {[%clk 00:23:24]} {[%emt 00:00:44]} Bh7 {[%clk 00:16:26]}
{[%emt 00:01:20]} 31. Rc6 {[%clk 00:18:39]} {[%emt 00:05:15]} Be7 {[%clk
00:16:17]} {[%emt 00:00:39]} 32. Rc3 {[%clk 00:18:53]} {[%emt 00:00:16]} Bf6
{[%clk 00:11:18]} {[%emt 00:05:30]} 33. Kg2 {[%clk 00:18:50]} {[%emt 00:00:33]}
h5 {[%clk 00:09:52]} {[%emt 00:01:55]} 34. Rdc1 {[%clk 00:16:21]} {[%emt
00:02:59]} b5 {[%clk 00:04:15]} {[%emt 00:06:07]} 35. Bxd6 {[%clk 00:14:33]}
{[%emt 00:02:18]} Qxd6 {[%clk 00:04:37]} {[%emt 00:00:08]} 36. Bxb5 {[%clk
00:14:08]} {[%emt 00:00:56]} Rb8 {[%clk 00:04:55]} {[%emt 00:00:11]} 37. a4
{[%clk 00:13:38]} {[%emt 00:01:00]} Qb4 {[%clk 00:05:05]} {[%emt 00:00:20]} 38.
b3 {[%clk 00:10:09]} {[%emt 00:03:59]} Qxd4 {[%clk 00:02:21]} {[%emt 00:03:13]}
39. Nd7 {[%clk 00:09:36]} {[%emt 00:01:03]} Bf5 {[%clk 00:01:17]} {[%emt
00:01:33]} 40. Nxb8 {[%clk 00:04:43]} {[%emt 00:05:23]} Rxb8 {[%clk 00:01:43]}
{[%emt 00:00:04]} 41. g4 {[%clk 00:01:48]} {[%emt 00:03:25]} Bg6 {[%clk
00:29:58]} {[%emt 00:02:15]} 42. Qxe6+ {[%clk 00:28:06]} {[%emt 00:04:12]} Kh7
{[%clk 00:30:23]} {[%emt 00:00:04]} 43. Qe2 {[%clk 00:25:26]} {[%emt 00:03:10]}
Qf4 {[%clk 00:27:02]} {[%emt 00:03:52]} 44. Bd3 {[%clk 00:17:28]} {[%emt
00:08:28]} Bxc3 {[%clk 00:25:52]} {[%emt 00:01:40]} 45. Rxc3 {[%clk 00:17:00]}
{[%emt 00:00:59]} Rb6 {[%clk 00:23:18]} {[%emt 00:03:04]} 46. Bxg6+ {[%clk
00:11:14]} {[%emt 00:06:16]} Rxg6 {[%clk 00:23:44]} {[%emt 00:00:04]} 47. Qe3
{[%clk 00:11:07]} {[%emt 00:00:36]} Qd6 {[%clk 00:23:18]} {[%emt 00:00:55]} 48.
Rc8 {[%clk 00:07:02]} {[%emt 00:04:35]} hxg4 {[%clk 00:20:58]} {[%emt
00:02:50]} 49. fxg4 {[%clk 00:07:08]} {[%emt 00:00:24]} Re6 {[%clk 00:19:13]}
{[%emt 00:02:15]} 50. Qd3+ {[%clk 00:04:34]} {[%emt 00:03:04]} Re4 {[%clk
00:19:03]} {[%emt 00:00:40]} 51. Re8 {[%clk 00:04:42]} {[%emt 00:00:22]} Qc6
{[%clk 00:16:24]} {[%emt 00:03:09]} 52. Rxe4 {[%clk 00:03:51]} {[%emt
00:01:20]} dxe4 {[%clk 00:16:52]} {[%emt 00:00:02]} 53. Qc4 {[%clk 00:04:00]}
{[%emt 00:00:20]} Qe8 {[%clk 00:13:40]} {[%emt 00:03:43]} 54. Qd5 {[%clk
00:03:52]} {[%emt 00:00:39]} e3 {[%clk 00:13:50]} {[%emt 00:00:20]} 55. Qh5+
{[%clk 00:02:32]} {[%emt 00:01:50]} Qxh5 {[%clk 00:14:07]} {[%emt 00:00:12]} 56.
gxh5 {[%clk 00:02:59]} {[%emt 00:00:04]} Kh6 {[%clk 00:14:27]} {[%emt
00:00:10]} 57. Kf3 {[%clk 00:03:15]} {[%emt 00:00:14]} Kxh5 {[%clk 00:14:35]}
{[%emt 00:00:22]} 58. b4 {[%clk 00:02:22]} {[%emt 00:01:23]} axb4 {[%clk
00:15:01]} {[%emt 00:00:04]} 59. Kxe3 {[%clk 00:02:47]} {[%emt 00:00:04]} 1-0

[Event "Masters Tournament (MTO)"]
[Site "Biel, Switzerland"]
[Date "2026.07.16"]
[Round "4.2"]
[White "Elmi, Saad Abobaker"]
[Black "Ghosh, Diptayan"]
[Result "1/2-1/2"]
[TimeControl "100+30+30sec/move"]
[WhiteTitle "-"]
[BlackTitle "-"]
[WhiteFideId "1553259"]
[BlackFideId "5045207"]
[WhiteElo "2399"]
[BlackElo "2554"]

1. e4 {[%clk 01:40:58]} {[%emt 00:00:01]} e5 {[%clk 01:37:38]} {[%emt
00:03:23]} 2. Nf3 {[%clk 01:41:16]} {[%emt 00:00:12]} Nc6 {[%clk 01:37:59]}
{[%emt 00:00:09]} 3. d4 {[%clk 01:41:23]} {[%emt 00:00:23]} exd4 {[%clk
01:37:34]} {[%emt 00:00:56]} 4. Nxd4 {[%clk 01:41:44]} {[%emt 00:00:08]} Bc5
{[%clk 01:36:24]} {[%emt 00:01:40]} 5. Nb3 {[%clk 01:42:09]} {[%emt 00:00:05]}
Bb6 {[%clk 01:36:25]} {[%emt 00:00:29]} 6. Nc3 {[%clk 01:42:02]} {[%emt
00:00:37]} d6 {[%clk 01:30:41]} {[%emt 00:06:13]} 7. Qe2 {[%clk 01:40:54]}
{[%emt 00:01:37]} a5 {[%clk 01:23:49]} {[%emt 00:07:24]} 8. Be3 {[%clk
01:40:56]} {[%emt 00:00:27]} a4 {[%clk 01:23:09]} {[%emt 00:01:10]} 9. Bxb6
{[%clk 01:41:19]} {[%emt 00:00:07]} axb3 {[%clk 01:23:35]} {[%emt 00:00:04]} 10.
Be3 {[%clk 01:41:38]} {[%emt 00:00:10]} bxa2 {[%clk 01:24:02]} {[%emt
00:00:04]} 11. Rxa2 {[%clk 01:41:32]} {[%emt 00:00:36]} Rxa2 {[%clk 01:24:28]}
{[%emt 00:00:04]} 12. Nxa2 {[%clk 01:41:55]} {[%emt 00:00:07]} Nf6 {[%clk
01:24:56]} {[%emt 00:00:03]} 13. Nc3 {[%clk 01:42:01]} {[%emt 00:00:24]} O-O
{[%clk 01:25:13]} {[%emt 00:00:13]} 14. Qd2 {[%clk 01:38:31]} {[%emt 00:03:59]}
Re8 {[%clk 01:22:05]} {[%emt 00:03:37]} 15. Bd3 {[%clk 01:33:20]} {[%emt
00:05:41]} Nb4 {[%clk 01:18:52]} {[%emt 00:03:45]} 1/2-1/2

[Event "Masters Tournament (MTO)"]
[Site "Biel, Switzerland"]
[Date "2026.07.16"]
[Round "4.3"]
[White "Aronyak, Ghosh"]
[Black "Haimovich, Tal"]
[Result "1/2-1/2"]
[TimeControl "100+30+30sec/move"]
[WhiteTitle "-"]
[BlackTitle "-"]
[WhiteFideId "25072846"]
[BlackFideId "2801698"]
[WhiteElo "2549"]
[BlackElo "2310"]

1. Nf3 {[%clk 01:37:53]} {[%emt 00:03:06]} d5 {[%clk 01:40:42]} {[%emt
00:00:18]} 2. g3 {[%clk 01:37:55]} {[%emt 00:00:28]} Nd7 {[%clk 01:40:45]}
{[%emt 00:00:27]} 3. d4 {[%clk 01:34:04]} {[%emt 00:04:21]} Nb6 {[%clk
01:41:03]} {[%emt 00:00:12]} 4. a4 {[%clk 01:34:04]} {[%emt 00:00:30]} a5
{[%clk 01:41:26]} {[%emt 00:00:07]} 5. Nc3 {[%clk 01:33:39]} {[%emt 00:00:54]}
Bf5 {[%clk 01:41:42]} {[%emt 00:00:15]} 6. Nh4 {[%clk 01:33:34]} {[%emt
00:00:36]} Bg4 {[%clk 01:40:19]} {[%emt 00:01:53]} 7. h3 {[%clk 01:33:15]}
{[%emt 00:00:48]} Bh5 {[%clk 01:39:25]} {[%emt 00:01:24]} 8. Ng2 {[%clk
01:32:50]} {[%emt 00:00:55]} e6 {[%clk 01:38:44]} {[%emt 00:01:12]} 9. Nf4
{[%clk 01:32:27]} {[%emt 00:00:53]} Bg6 {[%clk 01:39:08]} {[%emt 00:00:06]} 10.
Nxg6 {[%clk 01:31:44]} {[%emt 00:01:13]} hxg6 {[%clk 01:39:31]} {[%emt
00:00:08]} 11. Bg2 {[%clk 01:32:06]} {[%emt 00:00:08]} Bb4 {[%clk 01:32:13]}
{[%emt 00:07:48]} 12. Qd3 {[%clk 01:25:03]} {[%emt 00:07:32]} Nf6 {[%clk
01:27:40]} {[%emt 00:05:02]} 13. O-O {[%clk 01:24:55]} {[%emt 00:00:38]} O-O
{[%clk 01:27:35]} {[%emt 00:00:36]} 14. b3 {[%clk 01:17:40]} {[%emt 00:07:45]}
Nbd7 {[%clk 01:25:29]} {[%emt 00:02:36]} 15. Na2 {[%clk 01:11:27]} {[%emt
00:06:43]} Bd6 {[%clk 01:20:48]} {[%emt 00:05:10]} 16. c4 {[%clk 01:08:41]}
{[%emt 00:03:16]} c6 {[%clk 01:17:36]} {[%emt 00:03:43]} 17. Bb2 {[%clk
01:08:12]} {[%emt 00:00:58]} Re8 {[%clk 01:17:30]} {[%emt 00:00:35]} 18. Rad1
{[%clk 01:05:35]} {[%emt 00:03:08]} Qe7 {[%clk 01:15:19]} {[%emt 00:02:42]} 19.
Qc2 {[%clk 00:57:11]} {[%emt 00:08:53]} Rac8 {[%clk 01:06:58]} {[%emt
00:08:51]} 20. Nc3 {[%clk 00:52:49]} {[%emt 00:04:51]} b6 {[%clk 01:00:32]}
{[%emt 00:06:56]} 21. e3 {[%clk 00:51:56]} {[%emt 00:01:23]} Red8 {[%clk
00:53:02]} {[%emt 00:08:00]} 22. Qe2 {[%clk 00:50:04]} {[%emt 00:02:21]} Ba3
{[%clk 00:47:29]} {[%emt 00:06:04]} 23. Ba1 {[%clk 00:48:20]} {[%emt 00:02:14]}
Bb4 {[%clk 00:45:23]} {[%emt 00:02:35]} 24. Rc1 {[%clk 00:47:17]} {[%emt
00:01:33]} dxc4 {[%clk 00:37:46]} {[%emt 00:08:07]} 25. Qxc4 {[%clk 00:37:50]}
{[%emt 00:09:56]} e5 {[%clk 00:24:56]} {[%emt 00:13:20]} 26. Rc2 {[%clk
00:33:32]} {[%emt 00:04:48]} Bxc3 {[%clk 00:23:51]} {[%emt 00:01:36]} 27. Bxc3
{[%clk 00:33:24]} {[%emt 00:00:38]} e4 {[%clk 00:23:34]} {[%emt 00:00:46]} 28.
b4 {[%clk 00:32:41]} {[%emt 00:01:13]} axb4 {[%clk 00:23:14]} {[%emt 00:00:51]}
29. Bxb4 {[%clk 00:32:42]} {[%emt 00:00:28]} c5 {[%clk 00:22:47]} {[%emt
00:00:57]} 30. Ba3 {[%clk 00:31:21]} {[%emt 00:01:51]} Qe8 {[%clk 00:23:00]}
{[%emt 00:00:17]} 31. Rfc1 {[%clk 00:28:06]} {[%emt 00:03:45]} Ra8 {[%clk
00:21:52]} {[%emt 00:01:38]} 32. Bb2 {[%clk 00:26:57]} {[%emt 00:01:38]} Ra7
{[%clk 00:17:55]} {[%emt 00:04:28]} 33. Qb3 {[%clk 00:23:08]} {[%emt 00:04:19]}
Rda8 {[%clk 00:16:54]} {[%emt 00:01:31]} 34. Rc4 {[%clk 00:22:34]} {[%emt
00:01:04]} Qe6 {[%clk 00:07:48]} {[%emt 00:09:35]} 35. Qc2 {[%clk 00:21:32]}
{[%emt 00:01:33]} Ra5 {[%clk 00:07:37]} {[%emt 00:00:41]} 36. g4 {[%clk
00:20:15]} {[%emt 00:01:47]} g5 {[%clk 00:06:07]} {[%emt 00:02:00]} 37. dxc5
{[%clk 00:17:30]} {[%emt 00:03:15]} Nxc5 {[%clk 00:05:27]} {[%emt 00:01:09]} 38.
Bxf6 {[%clk 00:14:25]} {[%emt 00:03:35]} Qxf6 {[%clk 00:05:49]} {[%emt
00:00:08]} 39. Bxe4 {[%clk 00:14:45]} {[%emt 00:00:10]} R8a7 {[%clk 00:05:23]}
{[%emt 00:00:56]} 40. Qd1 {[%clk 00:13:43]} {[%emt 00:01:32]} g6 {[%clk
00:04:53]} {[%emt 00:01:00]} 41. Bc2 {[%clk 00:12:18]} {[%emt 00:01:54]} Rd7
{[%clk 00:26:39]} {[%emt 00:08:44]} 42. Qe2 {[%clk 00:39:45]} {[%emt 00:03:03]}
Raa7 {[%clk 00:26:13]} {[%emt 00:00:56]} 43. Rd1 {[%clk 00:33:54]} {[%emt
00:06:21]} Kg7 {[%clk 00:24:33]} {[%emt 00:02:09]} 44. Rxd7 {[%clk 00:32:27]}
{[%emt 00:01:57]} Nxd7 {[%clk 00:18:25]} {[%emt 00:06:39]} 45. Rd4 {[%clk
00:31:20]} {[%emt 00:01:37]} Ne5 {[%clk 00:17:45]} {[%emt 00:01:09]} 46. Be4
{[%clk 00:31:07]} {[%emt 00:00:43]} Nd7 {[%clk 00:13:44]} {[%emt 00:04:31]} 47.
Qb5 {[%clk 00:27:37]} {[%emt 00:04:00]} Nc5 {[%clk 00:12:57]} {[%emt 00:01:17]}
48. Qc6 {[%clk 00:27:17]} {[%emt 00:00:51]} Qe5 {[%clk 00:08:38]} {[%emt
00:04:48]} 49. Bf3 {[%clk 00:20:39]} {[%emt 00:07:07]} Ne6 {[%clk 00:07:27]}
{[%emt 00:01:42]} 50. Rd1 {[%clk 00:19:18]} {[%emt 00:01:52]} Qa5 {[%clk
00:06:51]} {[%emt 00:01:06]} 51. Rb1 {[%clk 00:17:05]} {[%emt 00:02:43]} Qxa4
{[%clk 00:03:42]} {[%emt 00:03:40]} 52. Qxb6 {[%clk 00:14:31]} {[%emt
00:03:03]} Qc2 {[%clk 00:01:18]} {[%emt 00:02:53]} 53. Bd5 {[%clk 00:14:06]}
{[%emt 00:00:56]} Ra6 {[%clk 00:01:09]} {[%emt 00:00:39]} 54. Qb4 {[%clk
00:12:56]} {[%emt 00:01:39]} Qc7 {[%clk 00:00:38]} {[%emt 00:01:02]} 55. Qb2+
{[%clk 00:12:41]} {[%emt 00:00:45]} Kg8 {[%clk 00:00:44]} {[%emt 00:00:24]} 56.
Rc1 {[%clk 00:12:13]} {[%emt 00:00:58]} Qd8 {[%clk 00:01:11]} {[%emt 00:00:03]}
57. Qb7 {[%clk 00:10:57]} {[%emt 00:01:46]} Rb6 {[%clk 00:01:31]} {[%emt
00:00:10]} 58. Qa7 {[%clk 00:09:55]} {[%emt 00:01:32]} Rd6 {[%clk 00:01:30]}
{[%emt 00:00:30]} 59. Bxe6 {[%clk 00:09:08]} {[%emt 00:01:17]} Rxe6 {[%clk
00:01:58]} {[%emt 00:00:02]} 60. Qb7 {[%clk 00:09:26]} {[%emt 00:00:11]} Kg7
{[%clk 00:02:00]} {[%emt 00:00:28]} 61. Qb5 {[%clk 00:08:03]} {[%emt 00:01:53]}
Rd6 {[%clk 00:01:37]} {[%emt 00:00:53]} 62. Qe5+ {[%clk 00:05:45]} {[%emt
00:02:47]} Qf6 {[%clk 00:02:02]} {[%emt 00:00:05]} 63. Rc5 {[%clk 00:05:58]}
{[%emt 00:00:17]} Qxe5 {[%clk 00:02:25]} {[%emt 00:00:07]} 64. Rxe5 {[%clk
00:06:27]} {[%emt 00:00:02]} Kf6 {[%clk 00:02:46]} {[%emt 00:00:08]} 65. Rc5
{[%clk 00:06:55]} {[%emt 00:00:02]} Ra6 {[%clk 00:03:07]} {[%emt 00:00:09]} 66.
Kg2 {[%clk 00:07:18]} {[%emt 00:00:07]} Ra1 {[%clk 00:03:23]} {[%emt 00:00:13]}
67. Rc6+ {[%clk 00:06:45]} {[%emt 00:01:03]} Kg7 {[%clk 00:03:47]} {[%emt
00:00:06]} 68. Rc4 {[%clk 00:06:31]} {[%emt 00:00:44]} Kf6 {[%clk 00:04:09]}
{[%emt 00:00:08]} 69. f4 {[%clk 00:06:50]} {[%emt 00:00:12]} gxf4 {[%clk
00:04:30]} {[%emt 00:00:09]} 70. Rxf4+ {[%clk 00:07:16]} {[%emt 00:00:04]} Kg7
{[%clk 00:04:48]} {[%emt 00:00:12]} 71. h4 {[%clk 00:07:43]} {[%emt 00:00:03]}
Ra5 {[%clk 00:03:48]} {[%emt 00:01:30]} 72. Rf1 {[%clk 00:07:48]} {[%emt
00:00:25]} Rb5 {[%clk 00:03:54]} {[%emt 00:00:25]} 73. Kg3 {[%clk 00:08:04]}
{[%emt 00:00:14]} Ra5 {[%clk 00:04:03]} {[%emt 00:00:20]} 74. Rh1 {[%clk
00:08:12]} {[%emt 00:00:21]} Rb5 {[%clk 00:04:12]} {[%emt 00:00:22]} 75. Kf4
{[%clk 00:08:37]} {[%emt 00:00:04]} Ra5 {[%clk 00:03:50]} {[%emt 00:00:52]} 76.
e4 {[%clk 00:06:43]} {[%emt 00:02:24]} Rb5 {[%clk 00:03:54]} {[%emt 00:00:26]}
77. Rd1 {[%clk 00:06:53]} {[%emt 00:00:19]} Rb2 {[%clk 00:03:55]} {[%emt
00:00:30]} 78. h5 {[%clk 00:07:10]} {[%emt 00:00:13]} Rh2 {[%clk 00:03:12]}
{[%emt 00:01:12]} 79. Kg3 {[%clk 00:06:43]} {[%emt 00:00:57]} Re2 {[%clk
00:03:32]} {[%emt 00:00:11]} 80. Kf4 {[%clk 00:06:50]} {[%emt 00:00:23]} Rh2
{[%clk 00:03:55]} {[%emt 00:00:06]} 81. Rd5 {[%clk 00:07:19]} {[%emt 00:00:02]}
gxh5 {[%clk 00:02:49]} {[%emt 00:01:36]} 82. gxh5 {[%clk 00:07:35]} {[%emt
00:00:13]} Rh4+ {[%clk 00:02:23]} {[%emt 00:00:55]} 83. Kf3 {[%clk 00:07:53]}
{[%emt 00:00:12]} Kh6 {[%clk 00:02:36]} {[%emt 00:00:18]} 84. Rd6+ {[%clk
00:07:57]} {[%emt 00:00:27]} Kg7 {[%clk 00:02:15]} {[%emt 00:00:51]} 85. Rd5
{[%clk 00:08:20]} {[%emt 00:00:06]} Kh6 {[%clk 00:02:04]} {[%emt 00:00:41]} 86.
Rf5 {[%clk 00:08:47]} {[%emt 00:00:03]} Rxh5 {[%clk 00:02:06]} {[%emt
00:00:28]} 87. Rxf7 {[%clk 00:09:14]} {[%emt 00:00:04]} Kg6 {[%clk 00:02:30]}
{[%emt 00:00:05]} 88. Rf8 {[%clk 00:09:00]} {[%emt 00:00:43]} Kg7 {[%clk
00:02:13]} {[%emt 00:00:48]} 89. Rf4 {[%clk 00:09:26]} {[%emt 00:00:04]} Ra5
{[%clk 00:01:54]} {[%emt 00:00:48]} 90. Rf5 {[%clk 00:09:06]} {[%emt 00:00:51]}
Rxf5+ {[%clk 00:02:18]} {[%emt 00:00:06]} 91. exf5 {[%clk 00:09:33]} {[%emt
00:00:02]} Kf6 {[%clk 00:02:41]} {[%emt 00:00:07]} 92. Ke2 {[%clk 00:10:02]}
{[%emt 00:00:01]} Kxf5 {[%emt 00:00:07]} 1/2-1/2

[Event "Masters Tournament (MTO)"]
[Site "Biel, Switzerland"]
[Date "2026.07.16"]
[Round "4.4"]
[White "Kozak, Adam"]
[Black "Dong, Hongfu"]
[Result "1/2-1/2"]
[TimeControl "100+30+30sec/move"]
[WhiteTitle "-"]
[BlackTitle "-"]
[WhiteFideId "753246"]
[BlackFideId "8626960"]
[WhiteElo "2531"]
[BlackElo "2353"]

1. Nf3 {[%clk 01:36:07]} {[%emt 00:04:41]} Nf6 {[%clk 01:40:37]} {[%emt
00:00:35]} 2. c4 {[%clk 01:36:25]} {[%emt 00:00:13]} c5 {[%clk 01:40:57]}
{[%emt 00:00:10]} 3. b3 {[%clk 01:36:49]} {[%emt 00:00:06]} d5 {[%clk
01:32:07]} {[%emt 00:09:20]} 4. cxd5 {[%clk 01:37:04]} {[%emt 00:00:15]} Nxd5
{[%clk 01:32:31]} {[%emt 00:00:05]} 5. Bb2 {[%clk 01:36:59]} {[%emt 00:00:36]}
Nc6 {[%clk 01:32:26]} {[%emt 00:00:36]} 6. Nc3 {[%clk 01:37:10]} {[%emt
00:00:19]} e5 {[%clk 01:26:29]} {[%emt 00:06:27]} 7. e3 {[%clk 01:37:33]}
{[%emt 00:00:07]} Be7 {[%clk 01:02:09]} {[%emt 00:24:49]} 8. Bb5 {[%clk
01:18:46]} {[%emt 00:19:17]} f6 {[%clk 00:51:21]} {[%emt 00:11:18]} 9. Nxd5
{[%clk 01:15:55]} {[%emt 00:03:22]} Qxd5 {[%clk 00:51:43]} {[%emt 00:00:08]} 10.
Bc4 {[%clk 01:04:24]} {[%emt 00:12:01]} Qd6 {[%clk 00:49:11]} {[%emt 00:03:00]}
11. d4 {[%clk 01:04:47]} {[%emt 00:00:08]} cxd4 {[%clk 00:46:37]} {[%emt
00:03:04]} 12. exd4 {[%clk 01:05:09]} {[%emt 00:00:08]} exd4 {[%clk 00:23:32]}
{[%emt 00:23:35]} 13. O-O {[%clk 00:50:57]} {[%emt 00:14:41]} Bg4 {[%clk
00:21:43]} {[%emt 00:02:20]} 14. Rc1 {[%clk 00:50:50]} {[%emt 00:00:37]} O-O-O
{[%clk 00:15:41]} {[%emt 00:06:32]} 15. Bb5 {[%clk 00:48:21]} {[%emt 00:02:58]}
Qd5 {[%clk 00:15:49]} {[%emt 00:00:23]} 16. Bxc6 {[%clk 00:46:36]} {[%emt
00:02:15]} bxc6 {[%clk 00:14:35]} {[%emt 00:01:45]} 17. Qd3 {[%clk 00:28:48]}
{[%emt 00:18:18]} 1/2-1/2

[Event "Masters Tournament (MTO)"]
[Site "Biel, Switzerland"]
[Date "2026.07.16"]
[Round "4.5"]
[White "Lu, Miaoyi"]
[Black "Gopal, G.N."]
[Result "0-1"]
[TimeControl "100+30+30sec/move"]
[WhiteTitle "-"]
[BlackTitle "-"]
[WhiteFideId "8618020"]
[BlackFideId "5015693"]
[WhiteElo "2392"]
[BlackElo "2529"]

1. e4 {[%clk 01:40:14]} {[%emt 00:00:47]} c5 {[%clk 01:40:55]} {[%emt
00:00:06]} 2. Nf3 {[%clk 01:40:38]} {[%emt 00:00:06]} d6 {[%clk 01:41:19]}
{[%emt 00:00:06]} 3. d4 {[%clk 01:41:00]} {[%emt 00:00:08]} cxd4 {[%clk
01:41:45]} {[%emt 00:00:05]} 4. Nxd4 {[%clk 01:41:27]} {[%emt 00:00:03]} Nf6
{[%clk 01:42:09]} {[%emt 00:00:06]} 5. Nc3 {[%clk 01:41:52]} {[%emt 00:00:04]}
a6 {[%clk 01:42:35]} {[%emt 00:00:04]} 6. a4 {[%clk 01:42:17]} {[%emt
00:00:05]} e5 {[%clk 01:40:12]} {[%emt 00:02:53]} 7. Nf3 {[%emt 00:02:32]} Be7
{[%clk 01:38:20]} 8. Bg5 {[%clk 01:43:01]} {[%emt 00:00:05]} Be6 {[%clk
01:38:35]} {[%emt 00:00:15]} 9. Bxf6 {[%clk 01:43:26]} {[%emt 00:00:05]} Bxf6
{[%clk 01:39:00]} {[%emt 00:00:05]} 10. Nd5 {[%clk 01:43:52]} {[%emt 00:00:04]}
Nd7 {[%clk 01:35:27]} {[%emt 00:04:04]} 11. Bc4 {[%clk 01:44:00]} {[%emt
00:00:21]} Rc8 {[%clk 01:28:38]} {[%emt 00:07:19]} 12. Qe2 {[%clk 01:44:22]}
{[%emt 00:00:08]} Nb6 {[%clk 01:22:35]} {[%emt 00:06:33]} 13. Nxf6+ {[%clk
01:44:24]} {[%emt 00:00:28]} Qxf6 {[%clk 01:22:58]} {[%emt 00:00:07]} 14. Bxe6
{[%clk 01:44:50]} {[%emt 00:00:04]} Qxe6 {[%clk 01:22:36]} {[%emt 00:00:53]} 15.
O-O {[%clk 01:45:14]} {[%emt 00:00:07]} O-O {[%clk 01:22:25]} {[%emt 00:00:40]}
16. Rfd1 {[%clk 01:45:36]} {[%emt 00:00:07]} Rc6 {[%clk 01:10:16]} {[%emt
00:12:40]} 17. c3 {[%clk 01:45:31]} {[%emt 00:00:35]} Nd7 {[%clk 00:52:46]}
{[%emt 00:17:59]} 18. Nd2 {[%clk 01:42:57]} {[%emt 00:03:03]} Nc5 {[%clk
00:40:17]} {[%emt 00:13:00]} 19. Nf1 {[%clk 01:41:49]} {[%emt 00:01:37]} h6
{[%clk 00:30:38]} {[%emt 00:10:09]} 20. f3 {[%clk 01:40:33]} {[%emt 00:01:47]}
f5 {[%clk 00:28:24]} {[%emt 00:02:45]} 21. b4 {[%clk 01:12:17]} {[%emt
00:28:46]} Nd7 {[%clk 00:22:28]} {[%emt 00:06:26]} 22. exf5 {[%clk 01:11:04]}
{[%emt 00:01:43]} Rxf5 {[%clk 00:22:55]} {[%emt 00:00:03]} 23. Ne3 {[%clk
01:07:16]} {[%emt 00:04:18]} Rf7 {[%clk 00:21:49]} {[%emt 00:01:37]} 24. Nd5
{[%clk 00:53:35]} {[%emt 00:14:10]} Nf6 {[%clk 00:20:52]} {[%emt 00:01:27]} 25.
c4 {[%emt 00:02:00]} Rc8 {[%clk 00:19:30]} 26. Nb6 {[%clk 00:46:56]} {[%emt
00:07:31]} Re8 {[%clk 00:17:06]} {[%emt 00:02:54]} 27. Qd2 {[%clk 00:41:56]}
{[%emt 00:05:30]} e4 {[%clk 00:15:59]} {[%emt 00:01:38]} 28. Re1 {[%clk
00:33:42]} {[%emt 00:08:43]} Qf5 {[%clk 00:10:00]} {[%emt 00:06:30]} 29. Ra3
{[%clk 00:31:25]} {[%emt 00:02:47]} a5 {[%clk 00:06:24]} {[%emt 00:04:06]} 30.
Rae3 {[%clk 00:26:24]} {[%emt 00:05:30]} axb4 {[%clk 00:06:27]} {[%emt
00:00:27]} 31. Qxb4 {[%clk 00:25:11]} {[%emt 00:01:43]} Rfe7 {[%clk 00:06:01]}
{[%emt 00:00:56]} 32. Kh1 {[%clk 00:20:35]} {[%emt 00:05:06]} exf3 {[%clk
00:04:49]} {[%emt 00:01:42]} 33. Rxe7 {[%clk 00:08:52]} {[%emt 00:12:13]} Rxe7
{[%clk 00:05:12]} {[%emt 00:00:07]} 34. gxf3 {[%clk 00:09:12]} {[%emt
00:00:10]} Qxf3+ {[%clk 00:05:39]} {[%emt 00:00:04]} 35. Kg1 {[%clk 00:09:38]}
{[%emt 00:00:03]} Ng4 {[%clk 00:04:56]} {[%emt 00:01:13]} 36. Qd2 {[%clk
00:09:27]} {[%emt 00:00:41]} Rxe1+ {[%clk 00:04:48]} {[%emt 00:00:38]} 37. Qxe1
{[%clk 00:09:53]} {[%emt 00:00:04]} Ne3 {[%clk 00:05:12]} {[%emt 00:00:06]} 0-1